[Event "Gibraltar Challengers A 2020"]
[Site "Caleta"]
[Date "2020.01.21"]
[Round "2.2"]
[White "Lipecki, Alexander"]
[Black "Carrascoso Morales, Abel"]
[Result "0-1"]
[ECO "E63"]
[WhiteElo "2152"]
[BlackElo "2229"]
[Annotator "ChessBase"]
[PlyCount "102"]
[EventDate "2020.01.20"]
[EventType "swiss"]
[EventCountry "GGB"]
[SourceTitle "playchess.com"]
[Source "ChessBase"]
[SourceQuality "1"]
[TimeControl "6600+10"]

1. d4 {[%emt 0:00:01]} Nf6 {[%emt 0:00:00]} 2. c4 {[%emt 0:00:17]} g6 {[%emt 0:00:02]} 3. Nf3 {[%emt 0:00:11]} Bg7 {[%emt 0:00:03]} 4. g3 {[%emt 0:00:09]} O-O {[%emt 0:00:06]} 5. Bg2 {[%emt 0:00:06]} d6 {[%emt 0:00:06]} 6. O-O {[%emt 0:00:08]} Nc6 {[%emt 0:00:06]} 7. Nc3 {[%emt 0:01:11]} a6 {[%emt 0:00:04]} 8. e3 {[%emt 0:07:44]} Bf5 {[%emt 0:03:24]} 9. b3 {[%emt 0:12:05]} Rb8 {[%emt 0:03:57]} 10. a4 {[%emt 0:02:55]} Nb4 {[%emt 0:05:08]} 11. Ne1 {[%emt 0:07:24]} c5 {[%emt 0:02:32]} 12. Ba3 {[%emt 0:03:04]} Qa5 {[%emt 0:05:27]} 13. Na2 {[%emt 0:06:29]} Nc6 {[%emt 0:02:53]} 14. Bb2 {[%emt 0:00:06]} cxd4 {[%emt 0:06:24]} 15. exd4 {[%emt 0:01:36]} d5 {[%emt 0:02:26]} 16. b4 {[%emt 0:04:17]} Qd8 {[%emt 0:00:24]} 17. c5 {[%emt 0:01:19]} Re8 {[%emt 0:04:01]} 18. b5 {[%emt 0:07:04]} Na5 {[%emt 0:00:45]} 19. Bc3 {[%emt 0:04:15]} Ne4 {[%emt 0:07:16]} 20. Rc1 {[%emt 0:02:52]} Nxc3 {[%emt 0:09:00]} 21. Nxc3 {[%emt 0:00:18]} axb5 {[%emt 0:02:25]} 22. axb5 {[%emt 0:01:27]} e5 {[%emt 0:02:38]} 23. Nxd5 {[%emt 0:09:40]} e4 {[%emt 0:08:46]} 24. Ne3 {[%emt 0:00:18]} Qxd4 {[%emt 0:02:54]} 25. Qe2 {[%emt 0:03:30]} Nb3 {[%emt 0:01:40]} 26. Rd1 {[%emt 0:03:23]} Qxc5 {[%emt 0:01:22]} 27. Rd5 {[%emt 0:00:40]} Nd4 {[%emt 0:03:38]} 28. Qd1 {[%emt 0:00:13]} Qc3 {[%emt 0:00:38]} 29. N1c2 {[%emt 0:07:54]} Nxc2 {[%emt 0:02:31]} 30. Qxc2 {[%emt 0:00:16]} Qxc2 {[%emt 0:00:09]} 31. Nxc2 {[%emt 0:00:02]} Be6 {[%emt 0:00:23]} 32. Rc5 {[%emt 0:00:08]} b6 {[%emt 0:01:13]} 33. Rc7 {[%emt 0:00:24]} Be5 {[%emt 0:01:54]} 34. Ra7 {[%emt 0:00:17]} Bc4 {[%emt 0:00:46]} 35. Re1 {[%emt 0:00:38]} Bxb5 {[%emt 0:12:39]} 36. Bxe4 {[%emt 0:03:39]} Bc3 {[%emt 0:01:06]} 37. Rb1 {[%emt 0:03:39]} Bc4 {[%emt 0:01:41]} 38. Bf3 {[%emt 0:01:24]} b5 {[%emt 0:01:36]} 39. Ne3 {[%emt 0:00:27]} Bd4 {[%emt 0:00:18]} 40. Rc7 {[%emt 0:06:49]} Bxe3 {[%emt 0:01:06]} 41. fxe3 {[%emt 0:00:04]} Rxe3 {[%emt 0:00:38]} 42. Kf2 {[%emt 0:03:39]} Ree8 {[%emt 0:00:14]} 43. Bg4 {[%emt 0:00:42]} Ra8 {[%emt 0:03:07]} 44. Rb2 {[%emt 0:00:13]} h5 {[%emt 0:00:28]} 45. Bf3 {[%emt 0:00:33]} Ra3 {[%emt 0:00:48]} 46. Bc6 {[%emt 0:00:09]} Re5 {[%emt 0:00:37]} 47. Rb7 {[%emt 0:00:04]} Rf5+ {[%emt 0:00:24]} 48. Kg2 {[%emt 0:00:33]} Bf1+ {[%emt 0:00:40]} 49. Kg1 {[%emt 0:00:05]} Ra1 {[%emt 0:00:09]} 50. Rb8+ {[%emt 0:00:02]} Kg7 {[%emt 0:00:12]} 51. Ra8 {[%emt 0:00:01]} Rc1 {[%emt 0:00:23]} 0-1

[Event "Gibraltar Challengers A 2020"]
[Site "Caleta"]
[Date "2020.01.21"]
[Round "2.3"]
[White "Oragwu, Chukwunonso"]
[Black "Longa Yauca, Javier"]
[Result "1-0"]
[ECO "B40"]
[WhiteElo "2220"]
[BlackElo "2154"]
[Annotator "ChessBase"]
[PlyCount "93"]
[EventDate "2020.01.20"]
[EventType "swiss"]
[EventCountry "GGB"]
[SourceTitle "playchess.com"]
[Source "ChessBase"]
[SourceQuality "1"]
[TimeControl "6600+10"]

1. e4 {[%emt 0:00:00]} e6 {[%emt 0:03:34]} 2. d3 {[%emt 0:00:13]} c5 {[%emt 0:00:46]} 3. Nf3 {[%emt 0:00:17]} Nc6 {[%emt 0:00:19]} 4. c3 {[%emt 0:00:16]} d5 {[%emt 0:01:52]} 5. Nbd2 {[%emt 0:00:06]} Nf6 {[%emt 0:01:13]} 6. Be2 {[%emt 0:00:15]} Be7 {[%emt 0:01:08]} 7. O-O {[%emt 0:00:15]} O-O {[%emt 0:00:08]} 8. Re1 {[%emt 0:00:06]} e5 {[%emt 0:04:19]} 9. exd5 {[%emt 0:02:59]} Qxd5 {[%emt 0:00:36]} 10. Bf1 {[%emt 0:02:40]} Bg4 {[%emt 0:06:08]} 11. Qb3 {[%emt 0:06:39]} Qxb3 {[%emt 0:04:59]} 12. axb3 {[%emt 0:00:33]} Nd7 {[%emt 0:00:31]} 13. h3 {[%emt 0:01:53]} Bh5 {[%emt 0:03:08]} 14. g4 {[%emt 0:01:02]} Bg6 {[%emt 0:00:06]} 15. Nc4 {[%emt 0:00:11]} Rfe8 {[%emt 0:09:04]} 16. Ncxe5 {[%emt 0:03:16]} Ndxe5 {[%emt 0:03:30]} 17. Nxe5 {[%emt 0:00:31]} Bf6 {[%emt 0:02:05]} 18. Nf3 {[%emt 0:00:17]} Red8 {[%emt 0:00:11]} 19. Be3 {[%emt 0:07:38]} b6 {[%emt 0:00:34]} 20. g5 {[%emt 0:09:24]} Be7 {[%emt 0:01:09]} 21. d4 {[%emt 0:02:36]} cxd4 {[%emt 0:02:08]} 22. Nxd4 {[%emt 0:00:46]} Nxd4 {[%emt 0:02:35]} 23. Bxd4 {[%emt 0:03:06]} Bxg5 {[%emt 0:04:02]} 24. Bg2 {[%emt 0:00:19]} Rab8 {[%emt 0:01:03]} 25. Rxa7 {[%emt 0:01:06]} h6 {[%emt 0:00:15]} 26. b4 {[%emt 0:04:44]} b5 {[%emt 0:00:23]} 27. Bf1 {[%emt 0:03:41]} Bf4 {[%emt 0:02:34]} 28. Bg2 {[%emt 0:07:08]} Rd6 {[%emt 0:09:06]} 29. Ree7 {[%emt 0:04:34]} Rc8 {[%emt 0:06:48]} 30. Ra8 {[%emt 0:07:33]} Rxa8 {[%emt 0:02:26]} 31. Bxa8 {[%emt 0:00:51]} Bc1 {[%emt 0:00:46]} 32. b3 {[%emt 0:04:47]} Bg5 {[%emt 0:02:57]} 33. Re8+ {[%emt 0:06:45]} Kh7 {[%emt 0:01:19]} 34. Re1 {[%emt 0:00:32]} f6 {[%emt 0:07:58]} 35. Be4 {[%emt 0:06:03]} f5 {[%emt 0:00:19]} 36. Bd3 {[%emt 0:00:59]} Bd2 {[%emt 0:04:08]} 37. Re7 {[%emt 0:04:57]} h5 {[%emt 0:00:19]} 38. Rxg7+ {[%emt 0:01:05]} Kh6 {[%emt 0:00:16]} 39. Re7 {[%emt 0:01:18]} f4 {[%emt 0:01:38]} 40. Bxb5 {[%emt 0:01:27]} Bf5 {[%emt 0:01:32]} 41. Bg7+ {[%emt 0:03:31]} Kg5 {[%emt 0:02:46]} 42. Be5 {[%emt 0:02:07]} Rg6 {[%emt 0:03:46]} 43. Rg7 {[%emt 0:00:54]} Rxg7 {[%emt 0:00:15]} 44. Bxg7 {[%emt 0:00:03]} Bxh3 {[%emt 0:00:12]} 45. Bc6 {[%emt 0:00:34]} Bg4 {[%emt 0:07:01]} 46. b5 {[%emt 0:00:58]} f3 {[%emt 0:00:22]} 47. Be5 {[%emt 0:00:40]} 1-0

[Event "Gibraltar Challengers A 2020"]
[Site "Caleta"]
[Date "2020.01.21"]
[Round "2.5"]
[White "Mohota, Nisha"]
[Black "Royset, Pal"]
[Result "0-1"]
[ECO "D36"]
[WhiteElo "2201"]
[BlackElo "2151"]
[Annotator "ChessBase"]
[PlyCount "114"]
[EventDate "2020.01.20"]
[EventType "swiss"]
[EventCountry "GGB"]
[SourceTitle "playchess.com"]
[Source "ChessBase"]
[SourceQuality "1"]
[TimeControl "6600+10"]

1. d4 {[%emt 0:00:06]} Nf6 {[%emt 0:00:11]} 2. c4 {[%emt 0:00:14]} e6 {[%emt 0:01:22]} 3. Nc3 {[%emt 0:00:11]} d5 {[%emt 0:01:04]} 4. cxd5 {[%emt 0:00:06]} exd5 {[%emt 0:00:10]} 5. Bg5 {[%emt 0:00:03]} c6 {[%emt 0:00:43]} 6. e3 {[%emt 0:00:43]} Be7 {[%emt 0:00:50]} 7. Bd3 {[%emt 0:00:47]} Nbd7 {[%emt 0:02:07]} 8. Qc2 {[%emt 0:00:22]} Nh5 {[%emt 0:02:44]} 9. Bxe7 {[%emt 0:01:09]} Qxe7 {[%emt 0:00:13]} 10. Nge2 {[%emt 0:01:55]} Nhf6 {[%emt 0:02:40]} 11. O-O-O {[%emt 0:15:24]} Nb6 {[%emt 0:02:17]} 12. Kb1 {[%emt 0:02:48]} Be6 {[%emt 0:03:48]} 13. Rc1 {[%emt 0:02:55]} h6 {[%emt 0:06:17]} 14. h3 {[%emt 0:08:56]} h5 {[%emt 0:11:24]} 15. Rhe1 {[%emt 0:09:37]} h4 {[%emt 0:08:18]} 16. f3 {[%emt 0:05:41]} O-O-O {[%emt 0:07:34]} 17. Na4 {[%emt 0:03:26]} Kb8 {[%emt 0:02:13]} 18. Nc5 {[%emt 0:05:06]} Bc8 {[%emt 0:01:23]} 19. Qd2 {[%emt 0:01:41]} Rde8 {[%emt 0:06:07]} 20. e4 {[%emt 0:02:25]} dxe4 {[%emt 0:01:26]} 21. fxe4 {[%emt 0:00:02]} Nbd7 {[%emt 0:04:33]} 22. e5 {[%emt 0:06:04]} Nd5 {[%emt 0:01:57]} 23. Ne4 {[%emt 0:03:19]} N7b6 {[%emt 0:02:20]} 24. Rf1 {[%emt 0:04:13]} Ref8 {[%emt 0:05:11]} 25. Ng1 {[%emt 0:05:24]} Nb4 {[%emt 0:04:42]} 26. Nc5 {[%emt 0:05:58]} Nxd3 {[%emt 0:00:51]} 27. Nxd3 {[%emt 0:01:07]} Nd5 {[%emt 0:02:00]} 28. Ne2 {[%emt 0:00:44]} Rd8 {[%emt 0:04:00]} 29. Rf3 {[%emt 0:01:17]} f5 {[%emt 0:03:40]} 30. Nc5 {[%emt 0:02:57]} g5 {[%emt 0:01:34]} 31. Rb3 {[%emt 0:01:44]} Ka8 {[%emt 0:02:10]} 32. Qa5 {[%emt 0:02:35]} b6 {[%emt 0:01:21]} 33. Qa4 {[%emt 0:02:09]} bxc5 {[%emt 0:01:25]} 34. Rxc5 {[%emt 0:00:02]} Rh6 {[%emt 0:04:12]} 35. Rxc6 {[%emt 0:05:07]} Bd7 {[%emt 0:03:42]} 36. Rb7 {[%emt 0:00:03]} Kxb7 {[%emt 0:00:23]} 37. Qa6+ {[%emt 0:00:02]} Ka8 {[%emt 0:02:04]} 38. Rxh6 {[%emt 0:00:03]} Bc8 {[%emt 0:01:05]} 39. Qa5 {[%emt 0:02:40]} f4 {[%emt 0:01:47]} 40. a3 {[%emt 0:01:05]} Bf5+ {[%emt 0:00:32]} 41. Ka1 {[%emt 0:00:18]} Qc7 {[%emt 0:00:49]} 42. Qd2 {[%emt 0:03:24]} Qc2 {[%emt 0:00:50]} 43. Qxc2 {[%emt 0:01:25]} Bxc2 {[%emt 0:00:06]} 44. Nc3 {[%emt 0:00:02]} Nxc3 {[%emt 0:00:25]} 45. bxc3 {[%emt 0:00:02]} Be4 {[%emt 0:00:13]} 46. e6 {[%emt 0:00:39]} Bxg2 {[%emt 0:00:08]} 47. Rf6 {[%emt 0:00:20]} Bxh3 {[%emt 0:00:53]} 48. e7 {[%emt 0:00:02]} Re8 {[%emt 0:00:07]} 49. Rf8 {[%emt 0:00:55]} Bd7 {[%emt 0:00:04]} 50. d5 {[%emt 0:00:24]} Kb7 {[%emt 0:00:09]} 51. c4 {[%emt 0:00:10]} Rxe7 {[%emt 0:00:14]} 52. c5 {[%emt 0:00:07]} h3 {[%emt 0:00:40]} 53. Rh8 {[%emt 0:00:27]} f3 {[%emt 0:00:29]} 54. c6+ {[%emt 0:00:06]} Bxc6 {[%emt 0:00:06]} 55. dxc6+ {[%emt 0:00:02]} Kxc6 {[%emt 0:00:06]} 56. Rxh3 {[%emt 0:00:04]} f2 {[%emt 0:00:07]} 57. Rf3 {[%emt 0:00:21]} Re1+ {[%emt 0:00:24]} 0-1

[Event "Gibraltar Challengers A 2020"]
[Site "Caleta"]
[Date "2020.01.21"]
[Round "2.6"]
[White "Ruperez, Miguel"]
[Black "Yanev, Pavel"]
[Result "0-1"]
[ECO "A30"]
[WhiteElo "2126"]
[BlackElo "2200"]
[Annotator "ChessBase"]
[PlyCount "102"]
[EventDate "2020.01.20"]
[EventType "swiss"]
[EventCountry "GGB"]
[SourceTitle "playchess.com"]
[Source "ChessBase"]
[SourceQuality "1"]
[TimeControl "6600+10"]

1. Nf3 {[%emt 0:00:00]} c5 {[%emt 0:06:52]} 2. b3 {[%emt 0:00:46]} Nc6 {[%emt 0:01:35]} 3. Bb2 {[%emt 0:00:33]} Nf6 {[%emt 0:00:52]} 4. c4 {[%emt 0:03:34]} e6 {[%emt 0:02:19]} 5. g3 {[%emt 0:05:11]} d5 {[%emt 0:01:17]} 6. cxd5 {[%emt 0:00:50]} exd5 {[%emt 0:01:14]} 7. Bg2 {[%emt 0:02:11]} d4 {[%emt 0:02:30]} 8. O-O {[%emt 0:10:19]} Be7 {[%emt 0:01:21]} 9. Na3 {[%emt 0:07:18]} O-O {[%emt 0:03:00]} 10. Nc4 {[%emt 0:13:01]} Be6 {[%emt 0:14:00]} 11. e3 {[%emt 0:04:50]} Rc8 {[%emt 0:07:29]} 12. d3 {[%emt 0:08:26]} dxe3 {[%emt 0:09:09]} 13. fxe3 {[%emt 0:02:07]} Nd5 {[%emt 0:02:35]} 14. Qe2 {[%emt 0:03:29]} b5 {[%emt 0:10:52]} 15. Rad1 {[%emt 0:05:04]} Ndb4 {[%emt 0:04:43]} 16. a3 {[%emt 0:04:40]} bxc4 {[%emt 0:01:58]} 17. dxc4 {[%emt 0:00:48]} Qb6 {[%emt 0:02:50]} 18. axb4 {[%emt 0:00:12]} Qxb4 {[%emt 0:00:38]} 19. Qc2 {[%emt 0:02:45]} Rfd8 {[%emt 0:04:51]} 20. Bc3 {[%emt 0:01:56]} Qb6 {[%emt 0:01:02]} 21. Qb2 {[%emt 0:01:12]} f6 {[%emt 0:05:18]} 22. Nh4 {[%emt 0:04:35]} Rxd1 {[%emt 0:03:46]} 23. Rxd1 {[%emt 0:00:27]} Rd8 {[%emt 0:00:24]} 24. Qc2 {[%emt 0:09:54]} Nd4 {[%emt 0:04:21]} 25. Bxd4 {[%emt 0:15:07]} cxd4 {[%emt 0:01:34]} 26. Nf5 {[%emt 0:01:02]} dxe3 {[%emt 0:03:39]} 27. Nxe7+ {[%emt 0:01:10]} Kf7 {[%emt 0:00:49]} 28. Re1 {[%emt 0:01:48]} Kxe7 {[%emt 0:01:54]} 29. Qc3 {[%emt 0:00:48]} Rd1 {[%emt 0:03:59]} 30. Kf1 {[%emt 0:00:32]} Rxe1+ {[%emt 0:01:10]} 31. Kxe1 {[%emt 0:00:07]} Qc5 {[%emt 0:01:33]} 32. Bf3 {[%emt 0:00:24]} a5 {[%emt 0:00:42]} 33. Ke2 {[%emt 0:00:07]} a4 {[%emt 0:00:28]} 34. bxa4 {[%emt 0:00:13]} Bxc4+ {[%emt 0:00:15]} 35. Ke1 {[%emt 0:00:03]} Kd6 {[%emt 0:00:31]} 36. Be2 {[%emt 0:00:15]} Bd5 {[%emt 0:00:24]} 37. Qxc5+ {[%emt 0:00:10]} Kxc5 {[%emt 0:00:07]} 38. Bd3 {[%emt 0:00:11]} h6 {[%emt 0:01:01]} 39. a5 {[%emt 0:00:10]} Kd4 {[%emt 0:00:17]} 40. Be2 {[%emt 0:00:09]} f5 {[%emt 0:00:34]} 41. a6 {[%emt 0:00:10]} g5 {[%emt 0:00:25]} 42. Bh5 {[%emt 0:00:12]} f4 {[%emt 0:00:09]} 43. gxf4 {[%emt 0:00:01]} gxf4 {[%emt 0:00:04]} 44. Ke2 {[%emt 0:00:20]} Bc4+ {[%emt 0:00:10]} 45. Kf3 {[%emt 0:00:06]} Bxa6 {[%emt 0:00:10]} 46. h4 {[%emt 0:00:14]} Kd3 {[%emt 0:00:51]} 47. Kxf4 {[%emt 0:00:11]} Kd2 {[%emt 0:00:09]} 48. Kf5 {[%emt 0:00:11]} e2 {[%emt 0:00:31]} 49. Bxe2 {[%emt 0:00:05]} Bxe2 {[%emt 0:00:11]} 50. h5 {[%emt 0:00:14]} Bxh5 {[%emt 0:00:15]} 51. Kf6 {[%emt 0:00:10]} Bf3 {[%emt 0:00:20]} 0-1

[Event "Gibraltar Challengers A 2020"]
[Site "Caleta"]
[Date "2020.01.21"]
[Round "2.7"]
[White "Onabogun, Kolade"]
[Black "Kandic, Milan"]
[Result "1/2-1/2"]
[ECO "C41"]
[WhiteElo "2198"]
[BlackElo "2132"]
[Annotator "ChessBase"]
[PlyCount "92"]
[EventDate "2020.01.20"]
[EventType "swiss"]
[EventCountry "GGB"]
[SourceTitle "playchess.com"]
[Source "ChessBase"]
[SourceQuality "1"]
[TimeControl "6600+10"]

1. e4 {[%emt 0:00:00]} d6 {[%emt 0:06:55]} 2. d4 {[%emt 0:00:09]} Nf6 {[%emt 0:00:04]} 3. Nc3 {[%emt 0:00:07]} e5 {[%emt 0:00:04]} 4. Nf3 {[%emt 0:00:33]} Nbd7 {[%emt 0:00:06]} 5. Bc4 {[%emt 0:00:05]} Be7 {[%emt 0:00:07]} 6. O-O {[%emt 0:00:09]} O-O {[%emt 0:00:03]} 7. a4 {[%emt 0:00:12]} c6 {[%emt 0:00:16]} 8. Re1 {[%emt 0:00:50]} b6 {[%emt 0:00:08]} 9. d5 {[%emt 0:08:18]} Bb7 {[%emt 0:01:18]} 10. b3 {[%emt 0:01:12]} cxd5 {[%emt 0:02:01]} 11. Nxd5 {[%emt 0:01:05]} Nxd5 {[%emt 0:00:12]} 12. Bxd5 {[%emt 0:00:05]} Bxd5 {[%emt 0:00:30]} 13. Qxd5 {[%emt 0:01:35]} Qc7 {[%emt 0:02:41]} 14. c4 {[%emt 0:07:02]} Nc5 {[%emt 0:03:14]} 15. Ra3 {[%emt 0:02:56]} Rac8 {[%emt 0:02:51]} 16. Nd2 {[%emt 0:04:48]} a5 {[%emt 0:04:33]} 17. Nb1 {[%emt 0:00:41]} Ne6 {[%emt 0:07:54]} 18. Be3 {[%emt 0:02:16]} Bg5 {[%emt 0:04:07]} 19. Bxg5 {[%emt 0:04:37]} Nxg5 {[%emt 0:00:06]} 20. Nc3 {[%emt 0:00:08]} Qd7 {[%emt 0:06:10]} 21. f4 {[%emt 0:14:10]} Rc5 {[%emt 0:04:08]} 22. Qd2 {[%emt 0:00:52]} exf4 {[%emt 0:00:41]} 23. Qxf4 {[%emt 0:00:10]} Re5 {[%emt 0:07:49]} 24. Ra2 {[%emt 0:05:51]} Rfe8 {[%emt 0:07:20]} 25. Rd2 {[%emt 0:05:20]} Qc6 {[%emt 0:11:11]} 26. Rd5 {[%emt 0:02:07]} f6 {[%emt 0:03:25]} 27. Re3 {[%emt 0:23:35]} Ne6 {[%emt 0:05:33]} 28. Qg4 {[%emt 0:00:56]} f5 {[%emt 0:11:55]} 29. Qh4 {[%emt 0:03:32]} Nc7 {[%emt 0:05:33]} 30. Rh3 {[%emt 0:06:59]} h6 {[%emt 0:05:01]} 31. Rg3 {[%emt 0:01:34]} Nxd5 {[%emt 0:02:15]} 32. Qxh6 {[%emt 0:00:13]} Qc5+ {[%emt 0:01:19]} 33. Kh1 {[%emt 0:02:06]} R8e7 {[%emt 0:00:32]} 34. Nxd5 {[%emt 0:01:23]} Rxd5 {[%emt 0:00:31]} 35. cxd5 {[%emt 0:00:03]} fxe4 {[%emt 0:02:01]} 36. h4 {[%emt 0:01:18]} Qxd5 {[%emt 0:01:19]} 37. Qe3 {[%emt 0:02:34]} Qc5 {[%emt 0:00:33]} 38. Qf4 {[%emt 0:00:23]} Qe5 {[%emt 0:01:00]} 39. Qe3 {[%emt 0:00:08]} d5 {[%emt 0:00:00]} 40. Rg5 {[%emt 0:00:10]} Qd6 {[%emt 0:00:17]} 41. Qd4 {[%emt 0:00:11]} Qb4 {[%emt 0:00:27]} 42. Qxd5+ {[%emt 0:00:11]} Rf7 {[%emt 0:00:11]} 43. Rf5 {[%emt 0:01:56]} Qe1+ {[%emt 0:00:11]} 44. Kh2 {[%emt 0:00:04]} Qxh4+ {[%emt 0:00:00]} 45. Kg1 {[%emt 0:00:02]} Qe1+ {[%emt 0:00:08]} 46. Kh2 {[%emt 0:00:04]} Qh4+ {[%emt 0:00:04] Qd1 Qd8} 1/2-1/2

[Event "Gibraltar Challengers A 2020"]
[Site "Caleta"]
[Date "2020.01.21"]
[Round "2.8"]
[White "Levay, Sorin"]
[Black "Dolzhikova, Olga"]
[Result "1/2-1/2"]
[ECO "B06"]
[WhiteElo "2192"]
[BlackElo "2123"]
[Annotator "ChessBase"]
[PlyCount "146"]
[EventDate "2020.01.20"]
[EventType "swiss"]
[EventCountry "GGB"]
[SourceTitle "playchess.com"]
[Source "ChessBase"]
[SourceQuality "1"]
[TimeControl "6600+10"]

1. e4 {[%emt 0:07:54]} g6 {[%emt 0:00:06]} 2. f4 {[%emt 0:00:31]} Bg7 {[%emt 0:00:19]} 3. Nf3 {[%emt 0:00:05]} d5 {[%emt 0:01:59]} 4. e5 {[%emt 0:00:15]} Bg4 {[%emt 0:04:34]} 5. c3 {[%emt 0:00:08]} c5 {[%emt 0:04:30]} 6. Na3 {[%emt 0:00:19]} Nh6 {[%emt 0:04:39]} 7. Nc2 {[%emt 0:00:19]} Nc6 {[%emt 0:02:35]} 8. Ne3 {[%emt 0:00:11]} Bxf3 {[%emt 0:01:35]} 9. Qxf3 {[%emt 0:00:07]} e6 {[%emt 0:01:13]} 10. Bb5 {[%emt 0:02:13]} O-O {[%emt 0:01:29]} 11. Bxc6 {[%emt 0:00:07]} bxc6 {[%emt 0:00:03]} 12. O-O {[%emt 0:00:10]} f6 {[%emt 0:04:24]} 13. exf6 {[%emt 0:00:09]} Qxf6 {[%emt 0:00:21]} 14. d3 {[%emt 0:00:40]} e5 {[%emt 0:11:03]} 15. Ng4 {[%emt 0:00:29]} Nxg4 {[%emt 0:01:19]} 16. Qxg4 {[%emt 0:00:07]} Rae8 {[%emt 0:02:08]} 17. Bd2 {[%emt 0:01:27]} e4 {[%emt 0:01:55]} 18. dxe4 {[%emt 0:00:26]} Rxe4 {[%emt 0:00:16]} 19. Rae1 {[%emt 0:00:14]} Qf5 {[%emt 0:17:47]} 20. Qf3 {[%emt 0:00:56]} Rfe8 {[%emt 0:00:14]} 21. Rxe4 {[%emt 0:01:22]} Qxe4 {[%emt 0:02:08]} 22. Qxe4 {[%emt 0:00:18]} Rxe4 {[%emt 0:00:03]} 23. Re1 {[%emt 0:01:56]} Ra4 {[%emt 0:03:22]} 24. a3 {[%emt 0:00:17]} Kf7 {[%emt 0:09:27]} 25. Kf2 {[%emt 0:00:21]} d4 {[%emt 0:02:03]} 26. Rb1 {[%emt 0:04:01]} dxc3 {[%emt 0:06:40]} 27. bxc3 {[%emt 0:00:06]} Rxa3 {[%emt 0:00:14]} 28. Rb7+ {[%emt 0:00:08]} Kg8 {[%emt 0:00:29]} 29. Rb8+ {[%emt 0:00:09]} Bf8 {[%emt 0:01:13]} 30. f5 {[%emt 0:02:38]} Ra2 {[%emt 0:01:18]} 31. Ke1 {[%emt 0:00:09]} Kf7 {[%emt 0:00:47]} 32. Rb7+ {[%emt 0:07:25]} Kf6 {[%emt 0:00:16]} 33. Rxh7 {[%emt 0:00:17]} gxf5 {[%emt 0:00:15]} 34. Rc7 {[%emt 0:00:24]} Ra6 {[%emt 0:01:50]} 35. h4 {[%emt 0:00:24]} Bd6 {[%emt 0:02:18]} 36. Rh7 {[%emt 0:02:17]} Bg3+ {[%emt 0:02:54]} 37. Ke2 {[%emt 0:00:10]} Kg6 {[%emt 0:02:42]} 38. Rh6+ {[%emt 0:00:33]} Kg7 {[%emt 0:00:11]} 39. h5 {[%emt 0:00:18]} Be5 {[%emt 0:01:26]} 40. Rg6+ {[%emt 0:02:12]} Kf7 {[%emt 0:01:18]} 41. Kd3 {[%emt 0:02:55]} Rb6 {[%emt 0:02:36]} 42. g4 {[%emt 0:01:26]} fxg4 {[%emt 0:00:50]} 43. Rxg4 {[%emt 0:01:06]} Rb1 {[%emt 0:02:27]} 44. Ra4 {[%emt 0:01:43]} Rb7 {[%emt 0:00:54]} 45. Be3 {[%emt 0:01:42]} Bd6 {[%emt 0:00:47]} 46. Ra6 {[%emt 0:01:00]} Ke6 {[%emt 0:02:23]} 47. Kc4 {[%emt 0:00:59]} Rg7 {[%emt 0:01:37]} 48. Rxc6 {[%emt 0:01:27]} Rg4+ {[%emt 0:01:28]} 49. Kb5 {[%emt 0:00:23]} Kd7 {[%emt 0:00:31]} 50. Ra6 {[%emt 0:00:17]} Re4 {[%emt 0:00:23]} 51. Rxa7+ {[%emt 0:00:56]} Ke6 {[%emt 0:00:01]} 52. Bc1 {[%emt 0:02:46]} Re1 {[%emt 0:00:07]} 53. Ra1 {[%emt 0:03:11]} c4 {[%emt 0:00:58]} 54. Kxc4 {[%emt 0:00:24]} Re4+ {[%emt 0:00:16]} 55. Kd3 {[%emt 0:00:24]} Rh4 {[%emt 0:00:05]} 56. h6 {[%emt 0:00:31]} Be5 {[%emt 0:00:09]} 57. Ra6+ {[%emt 0:00:13]} Kf5 {[%emt 0:00:05]} 58. Ra5 {[%emt 0:02:06]} Rh3+ {[%emt 0:00:15]} 59. Be3 {[%emt 0:00:12]} Ke6 {[%emt 0:00:04]} 60. Ra6+ {[%emt 0:00:31]} Kf5 {[%emt 0:00:09]} 61. Ra5 {[%emt 0:02:23]} Ke6 {[%emt 0:00:02]} 62. Ke4 {[%emt 0:04:37]} Bxc3 {[%emt 0:00:03]} 63. Ra6+ {[%emt 0:00:05]} Kf7 {[%emt 0:00:08]} 64. Bf4 {[%emt 0:00:13]} Rh5 {[%emt 0:00:20]} 65. Kf3 {[%emt 0:01:02]} Bf6 {[%emt 0:00:07]} 66. Kg4 {[%emt 0:00:26]} Rh4+ {[%emt 0:00:07]} 67. Kf5 {[%emt 0:00:04]} Rh5+ {[%emt 0:00:01]} 68. Ke4 {[%emt 0:00:07]} Rh4 {[%emt 0:00:15]} 69. Ra5 {[%emt 0:03:06]} Rh1 {[%emt 0:00:25]} 70. Ra2 {[%emt 0:01:21]} Rh3 {[%emt 0:00:10]} 71. Rg2 {[%emt 0:00:26]} Rh5 {[%emt 0:00:12]} 72. Rg4 {[%emt 0:00:12]} Rh3 {[%emt 0:00:18]} 73. Kf5 {[%emt 0:00:32]} Rh5+ {[%emt 0:00:03]} 1/2-1/2